bitfinex/quotes_ETHUSD_20240721
["timestamp","ask_amount","ask_price","bid_price","bid_amount"]
[1721578976845,2.85679,3500.5,3499.7,0.55]
[1721578977028,2.91215286,3500.4,3499.6,5.19885]
[1721578977362,0.05528286,3500.4,3499.6,2.3414]
[1721578977523,2.91209286,3500.4,3499.7,0.55]
[1721578977860,2.8569,3500.3,3499.7,0.55]
[1721578978225,0.05528232,3500.2,3499.7,0.55]
[1721578979050,3.61358366,3500.5,3499.7,0.55]
[1721578979383,3.3335045,3500.7,3499.8,2.85729]
[1721578979384,0.05528205,3500.1,3499.8,2.85729]
[1721578979573,2.85667,3500.6,3499.7,3.40738]
[1721578979733,0.05528179,3500.0,3499.7,3.40738]
[1721578979922,2.85674,3500.5,3499.7,3.40738]
[1721578980319,0.05528286,3500.4,3500.0,2.85712]
[1721578980561,0.05528286,3500.4,3499.8,2.85724]
[1721578980769,2.85666,3500.6,3499.9,0.55]
[1721578980970,0.05528259,3500.3,3499.9,0.55]
[1721578981133,2.85684,3500.4,3499.7,0.55]
[1721578981465,0.05529113,3500.3,3499.7,0.55]
[1721578981853,2.91221113,3500.3,3499.7,0.55]
[1721578982436,0.05529113,3500.3,3499.7,0.55]
[1721578983385,3.51870239,3500.3,3499.6,2.3414]
[1721578983559,2.85715,3500.0,3499.6,2.3414]
[1721578983757,2.85715,3500.0,3499.3,2.3758]
[1721578983957,2.91253005,3499.9,3499.4,0.55]
[1721578984167,0.05529005,3499.9,3499.4,0.55]
[1721578984486,0.05529005,3499.9,3499.3,2.3758]
[1721578984671,2.91253005,3499.9,3499.3,2.3758]
[1721578984866,2.85724,3499.9,3499.3,2.3758]
[1721578985071,2.91258131,3499.8,3499.3,2.3758]
[1721578985574,2.85731,3499.8,3499.3,2.3758]
[1721578985739,0.571438,3499.8,3499.3,2.3758]
[1721578986079,0.571438,3499.8,3499.0,2.2784]
[1721578986288,2.85741,3499.7,3499.0,2.2784]
[1721578986472,2.85758,3499.5,3499.0,2.2784]
[1721578986798,2.85764,3499.4,3499.0,2.2784]
[1721578987574,2.85741,3499.7,3499.0,2.2784]
[1721578987777,3.143151,3499.7,3499.0,2.2784]
[1721578987989,0.05522247,3499.6,3499.0,2.2784]
[1721578988285,2.85804,3499.0,3498.6,0.2098798]
[1721578988499,2.85815,3498.8,3498.6,0.2098798]
[1721578988992,0.05518168,3498.7,3498.6,0.2098798]
[1721578989286,2.85804,3499.0,3498.6,0.2098798]
[1721578989494,0.05518168,3498.7,3498.6,0.2098798]
[1721578989786,2.85755,3499.5,3498.6,0.2098798]
[1721578990000,3.3143291,3499.4,3498.6,0.2098798]
[1721578990283,3.36941303,3499.4,3498.6,0.2098798]
[1721578990691,2.85779,3499.2,3498.6,0.2098798]
[1721578991157,0.05508326,3499.1,3498.6,0.2098798]
[1721578991559,3.0,3499.2,3498.6,0.2098798]
[1721578991783,0.05508299,3499.0,3498.6,0.2098798]
[1721578991959,0.05508326,3499.1,3498.6,0.2098798]
[1721578992161,0.05508272,3498.9,3498.6,0.2098798]
[1721578992387,5.85781,3499.2,3498.6,0.2098798]
[1721578992388,0.05508299,3499.0,3498.6,0.2098798]
[1721578992556,0.05508245,3498.8,3498.6,0.2098798]
[1721578992757,3.3143291,3499.4,3498.6,0.2098798]
[1721578992953,0.05508218,3498.7,3498.6,0.2098798]
[1721578993199,0.61718891,3499.3,3498.6,0.2098798]
[1721578993605,0.05508353,3499.2,3498.6,0.2098798]
[1721578993956,3.05508353,3499.2,3498.6,0.2098798]
[1721578996255,3.05508353,3499.2,3498.7,2.2891]
[1721578996499,0.05508353,3499.2,3499.0,2.8579]
[1721578996715,0.05508353,3499.2,3499.1,2.85787]
[1721578996916,2.8571,3500.1,3499.2,2.85771]
[1721578997200,3.15479752,3500.3,3499.2,2.85771]
[1721578997201,2.85714,3500.0,3499.2,2.85771]
[1721578997402,2.91207084,3500.0,3499.2,2.85771]
[1721578997559,2.8573,3499.8,3498.9,7.25]
[1721578997762,2.85749,3499.6,3498.9,7.25]
[1721578997961,3.05493569,3499.7,3498.9,7.25]
[1721578998193,0.05493516,3499.5,3498.9,7.25]
[1721578998402,2.91240514,3499.6,3498.9,7.25]
[1721578998574,0.0549346,3499.4,3498.9,7.25]
[1721578998906,0.05493433,3499.3,3498.9,7.25]
[1721578999075,0.05493433,3499.3,3498.8,2.85812]
[1721578999416,3.0,3499.7,3498.7,2.2891]
[1721578999417,2.85755,3499.5,3498.7,2.2891]
[1721578999619,0.05493407,3499.2,3498.8,2.8581]
[1721578999766,5.85742,3499.7,3499.0,2.85795]
[1721578999767,3.0,3499.7,3499.0,2.85795]
[1721578999968,0.05493161,3499.1,3499.0,2.85795]
[1721579000195,3.0,3499.7,3499.0,2.85795]
[1721579000403,0.29631947,3500.0,3499.6,2.85746]
[1721579000611,3.15445082,3500.7,3499.6,2.85746]
[1721579000612,2.85681,3500.4,3499.6,2.85746]
[1721579000773,3.51706873,3500.4,3499.6,2.85746]
[1721579000971,3.51706873,3500.4,3499.4,2.85763]
[1721579000972,0.66025873,3500.4,3499.7,2.85738]
[1721579001417,2.85668,3500.6,3499.5,2.34624874]
[1721579001418,0.29625869,3500.6,3499.5,2.34624874]
[1721579001596,2.85625,3501.1,3499.9,2.85722]
[1721579001794,2.85625,3501.1,3499.8,7.25]
[1721579002000,2.85609,3501.3,3500.3,2.85688]
[1721579002370,2.85616,3501.2,3500.3,2.85688]
[1721579002567,0.34474865,3501.1,3500.3,2.85688]
[1721579002908,0.59132647,3501.4,3500.5,2.2891]
[1721579003114,0.59132647,3501.7,3500.5,2.2891]
[1721579003279,2.8557,3501.8,3500.9,2.85634]
[1721579003280,3.44702647,3501.8,3500.9,2.85634]
[1721579003472,2.8557,3501.8,3500.9,2.85634]
[1721579003910,0.29612587,3501.7,3500.9,2.85634]
[1721579004095,0.29612587,3501.7,3500.8,2.85644]
[1721579004269,0.29612587,3501.7,3500.9,2.85633]
[1721579006271,0.29612587,3501.7,3500.7,2.85656]
[1721579006472,0.29612587,3501.7,3500.6,7.25]
[1721579006473,2.856,3501.4,3500.6,7.25]
[1721579006706,0.29612587,3501.7,3500.6,7.25]
[1721579006907,2.8561,3501.3,3500.6,7.25]
[1721579007515,2.8561,3501.3,3500.4,2.85678]
[1721579007684,2.85616,3501.2,3500.3,22.29049]
[1721579009309,2.85602,3501.4,3500.4,2.8568]
[1721579009475,3.0,3501.3,3500.4,2.8568]
[1721579009810,6.86420107,3501.3,3500.4,2.8568]
[1721579010511,4.00811107,3501.3,3500.5,2.85672]
[1721579011102,3.0,3501.3,3500.3,22.29049]
[1721579011274,3.0,3501.5,3500.4,0.55]
[1721579011821,0.0533998,3501.4,3500.6,2.85664]
[1721579012024,2.85609,3501.3,3500.4,2.8568]
[1721579012392,0.05339927,3501.2,3500.4,2.8568]
[1721579012573,0.9299412,3501.2,3500.4,2.8568]
[1721579012997,0.9299412,3501.2,3500.5,2.85671]
[1721579013221,0.05339927,3501.2,3500.4,2.8568]
[1721579013376,0.05339927,3501.2,3500.7,2.85655]
[1721579013575,5.85593,3501.5,3500.7,2.85655]
[1721579013817,0.053399,3501.1,3500.7,2.85655]
[1721579014025,5.85593,3501.5,3500.7,2.85655]
[1721579014323,4.03769866,3501.5,3500.9,2.85639]
[1721579014471,0.0533998,3501.4,3500.9,2.85639]
[1721579014797,0.0533998,3501.4,3500.8,2.85647]
[1721579015315,0.0533998,3501.4,3500.5,2.85671]
[1721579015502,0.0533998,3501.4,3500.7,2.85654]
[1721579015810,6.63367421,3501.6,3500.7,2.85654]
[1721579016015,0.05365852,3501.3,3500.6,3.40665]
[1721579016214,0.72250007,3501.5,3500.6,3.40665]
[1721579016389,0.05365825,3501.2,3500.6,3.40665]
[1721579016595,0.72250007,3501.5,3500.6,3.40665]
[1721579016801,0.05365801,3501.1,3500.6,3.40665]
[1721579017007,6.92896818,3501.6,3500.7,2.85656]
[1721579017407,0.05365867,3501.5,3500.7,2.85656]
[1721579018714,2.85605,3501.4,3500.4,2.8568]
[1721579018949,2.9097084,3501.4,3500.5,0.55]
[1721579019105,0.98387666,3501.3,3500.5,0.55]
[1721579019740,0.05365073,3501.2,3500.5,0.55]
[1721579020424,0.05365073,3501.2,3500.3,7.25]
[1721579020425,2.90987073,3501.2,3500.3,7.25]
[1721579020808,2.90987073,3501.2,3500.3,10.10689]
[1721579021347,0.05365073,3501.2,3500.3,10.10689]
[1721579021521,2.85605,3501.4,3500.3,10.10689]
[1721579021710,3.81591004,3501.4,3500.3,10.10689]
[1721579021908,0.053651,3501.3,3500.3,10.10689]
[1721579022455,2.909741,3501.3,3500.4,2.85681]
[1721579023736,2.85617,3501.2,3500.3,7.25]
[1721579023913,2.90982073,3501.2,3500.3,10.10684]
[1721579025226,3.58238881,3501.2,3500.3,10.10684]
[1721579025556,6.06758881,3501.2,3500.3,7.25]
[1721579025768,3.21141881,3501.2,3500.3,7.25]
[1721579026060,5.85626,3501.1,3500.3,7.25]
[1721579026263,2.85649,3500.8,3500.3,7.25]
[1721579026568,0.34463361,3500.7,3500.2,19.73]
[1721579026866,3.20121361,3500.7,3500.2,19.73]
[1721579027057,2.85665,3500.6,3500.2,19.73]
[1721579027643,0.05358043,3500.5,3500.2,19.73]
[1721579028381,0.59132647,3501.0,3500.2,19.73]
[1721579028382,2.91037723,3500.4,3500.2,19.73]
[1721579028546,3.0,3500.3,3500.2,19.73]
[1721579028931,3.05350696,3500.3,3500.2,19.73]
[1721579029131,0.05350696,3500.3,3500.2,19.73]
[1721579029332,3.0,3500.5,3500.2,19.73]
[1721579029636,0.05344993,3500.3,3500.2,19.73]
[1721579029840,3.0,3500.5,3500.2,19.73]
[1721579030047,0.05344993,3500.3,3500.2,19.73]
[1721579030375,3.05344993,3500.3,3500.2,19.73]
[1721579031051,3.05344993,3500.3,3499.7,2.85736]
[1721579031052,0.05344993,3500.3,3499.7,2.85736]
[1721579031389,3.871315,3500.5,3499.7,2.85736]
[1721579031845,0.05346176,3500.4,3499.7,2.85736]
[1721579032381,0.05346176,3500.4,3499.6,7.25]
[1721579032676,0.73161344,3500.4,3499.6,7.25]
[1721579033393,3.58843344,3500.4,3499.6,7.25]
[1721579033601,3.0,3500.3,3499.6,7.25]
[1721579034100,0.05347093,3500.2,3499.6,7.25]
[1721579034889,0.05347093,3500.2,3499.6,10.10745]
[1721579035401,0.05343773,3500.1,3499.6,10.10745]
[1721579035773,3.67815168,3500.4,3499.7,2.85736]
[1721579035990,0.05343746,3500.0,3499.7,2.85736]
[1721579036186,3.0,3500.3,3499.7,2.85736]
[1721579036390,0.05344289,3499.9,3499.7,2.85736]
[1721579036718,3.0,3500.5,3499.7,2.85736]
[1721579037086,0.05344262,3499.8,3499.7,2.85736]
[1721579037467,3.0,3500.5,3499.7,2.85736]
[1721579037714,0.585666,3500.4,3499.7,2.85736]
[1721579037882,2.85695,3500.3,3499.5,19.73]
[1721579038215,0.05344367,3500.2,3499.5,19.73]
[1721579039038,0.05344367,3500.2,3499.7,2.85732]
[1721579039512,3.59132647,3500.8,3499.8,2.4982]
[1721579040111,2.85658,3500.7,3499.8,2.4982]
[1721579040315,3.0,3500.6,3499.8,2.4982]
[1721579040616,3.0,3500.6,3500.0,2.85714]
[1721579040617,0.05341352,3500.6,3500.0,2.85714]
[1721579040786,0.05341352,3500.6,3500.2,2.85691]
[1721579041123,0.59132647,3501.2,3500.2,2.85691]
[1721579041411,0.05343537,3500.5,3500.4,2.85675]
[1721579041634,0.59132647,3501.4,3500.5,2.85673]
[1721579041912,0.59132647,3501.5,3500.8,2.85643]
[1721579042069,0.05347322,3501.3,3500.8,2.85643]
[1721579042416,0.59132647,3501.6,3500.8,2.85643]
[1721579042721,0.05347295,3501.2,3500.9,2.85636]
[1721579042873,0.59132647,3501.8,3500.9,2.85636]
[1721579043214,0.59132647,3501.6,3500.6,2.85663]
[1721579043546,0.0536619,3501.5,3500.7,0.55]
[1721579043759,0.0536619,3501.5,3500.8,2.85642]
[1721579044104,0.59132647,3501.7,3500.9,2.8564]
[1721579044404,0.05366223,3501.4,3500.7,2.85654]
[1721579044711,4.28435238,3501.7,3500.8,0.55]
[1721579044911,0.05366196,3501.3,3500.8,0.55]
[1721579045216,0.59132647,3501.5,3500.8,0.55]
[1721579045421,0.05370729,3501.2,3500.8,0.55]
[1721579045622,0.59132647,3501.5,3500.8,0.55]
[1721579045943,0.81713721,3501.4,3500.8,0.55]
[1721579046140,0.87084504,3501.4,3500.4,2.85679]
[1721579046347,1.46217151,3501.4,3500.5,0.55]
[1721579046513,4.31817151,3501.4,3500.5,0.55]
[1721579046843,0.05370783,3501.4,3500.6,2.85663]
[1721579047203,0.6450343,3501.4,3500.7,2.85656]
[1721579047399,0.05370783,3501.4,3500.8,0.55]
[1721579047830,0.05370783,3501.4,3500.3,12.46269]
[1721579047831,0.05370783,3501.4,3500.7,2.85653]
[1721579048004,0.05370783,3501.4,3500.8,0.55]
[1721579048208,0.6450343,3501.4,3500.8,0.55]
[1721579048427,0.6450343,3501.4,3500.7,2.85651]
[1721579048632,0.6450343,3501.4,3500.8,0.55]
[1721579048832,2.90970783,3501.4,3500.3,12.46268]
[1721579049039,2.85625,3501.1,3500.4,0.55]
[1721579049338,0.05376867,3501.0,3500.4,0.55]
[1721579049517,3.44741647,3501.3,3500.3,9.6058]
[1721579049718,3.38168971,3501.5,3500.3,9.6058]
[1721579049719,2.85681,3500.4,3500.3,7.25]
[1721579049960,2.85691,3500.3,3500.1,19.73]
[1721579050331,0.05369271,3500.2,3500.1,19.73]
[1721579050533,2.85691,3500.3,3500.1,19.73]
[1721579050734,0.05369271,3500.2,3500.1,19.73]
[1721579051033,2.85691,3500.3,3500.1,19.73]
[1721579051230,0.05357355,3500.2,3500.1,19.73]
[1721579051442,0.68943055,3500.2,3500.1,19.73]
[1721579051668,0.635857,3500.2,3500.1,19.73]
[1721579051961,0.6894303,3500.2,3500.1,19.73]
[1721579053347,0.0535733,3500.2,3500.1,19.73]
[1721579053553,3.59132647,3500.4,3500.1,19.73]
[1721579053757,0.05356016,3500.2,3500.1,19.73]
[1721579053941,0.59132647,3500.5,3500.1,19.73]
[1721579054270,0.05167721,3500.2,3500.1,19.73]
[1721579054588,0.59132647,3500.7,3500.1,22.0858]
[1721579054801,0.05170754,3500.2,3500.1,22.0858]
[1721579055071,0.05170754,3500.2,3500.1,2.3558]
[1721579055265,3.44789647,3500.7,3500.1,2.3558]
[1721579055471,2.85673,3500.6,3500.1,2.3558]
[1721579055668,3.49978511,3500.6,3500.1,2.3558]
[1721579057401,4.52410459,3500.6,3500.1,2.3558]
[1721579058375,3.93277812,3500.6,3500.1,2.3558]
[1721579060299,1.07604812,3500.6,3500.1,2.3558]
[1721579060462,0.05172864,3500.6,3500.1,2.3558]
[1721579061766,0.05172864,3500.6,3500.4,2.85676]
[1721579061966,0.05172864,3500.6,3500.5,2.85673]
[1721579062179,1.18265295,3501.4,3500.5,2.85673]
[1721579062180,0.59132647,3501.2,3500.5,5.66213]
[1721579062388,0.05173138,3500.6,3500.5,2.8054]
[1721579062718,0.59132647,3501.1,3500.5,2.8054]
[1721579062993,3.59132647,3501.1,3500.5,2.8054]
[1721579063197,0.05179968,3501.0,3500.5,2.8054]
[1721579063371,0.64312615,3501.0,3500.5,2.8054]
[1721579063561,2.8564,3500.9,3500.2,7.25]
[1721579063761,2.85651,3500.8,3500.2,7.25]
[1721579063990,2.85658,3500.7,3500.0,2.2554]
[1721579064204,2.90839409,3500.7,3500.0,2.2554]
[1721579064366,3.49972056,3500.7,3500.0,2.2554]
[1721579065076,2.85667,3500.6,3500.0,2.2554]
[1721579065271,3.44799647,3500.6,3500.0,2.2554]
[1721579065477,0.05184006,3500.5,3500.0,2.2554]
[1721579066002,0.64316653,3500.5,3500.0,2.2554]
[1721579066402,2.85683,3500.4,3500.0,2.2554]
[1721579066576,3.49999642,3500.4,3500.0,2.2554]
[1721579066778,0.64316642,3500.4,3500.0,2.2554]
[1721579069909,0.05183995,3500.4,3500.0,2.2554]
[1721579070567,0.64316642,3500.4,3500.0,2.2554]
[1721579071005,0.05183995,3500.4,3500.0,2.2554]
[1721579072111,0.05183995,3500.4,3500.0,5.11254]
[1721579072491,0.05183995,3500.4,3500.0,2.2554]
[1721579072802,0.05179098,3500.3,3500.0,2.2554]
[1721579073004,0.59132647,3500.7,3500.2,2.85697]
[1721579073204,0.59132647,3500.8,3500.2,2.85697]
[1721579073508,2.85625,3501.1,3500.2,2.85697]
[1721579073509,0.59132647,3500.9,3500.3,0.55]
[1721579073756,0.59132647,3501.0,3500.3,3.40684]
[1721579073953,0.59132647,3501.1,3500.3,3.40684]
[1721579074953,0.59132647,3501.0,3500.3,3.40684]
[1721579075456,0.59132647,3501.1,3500.3,3.40684]
[1721579075618,3.59132647,3501.1,3500.3,3.40684]
[1721579075820,0.59132647,3501.0,3500.3,3.40684]
[1721579076761,1.44303938,3501.0,3500.1,2.034]
[1721579076925,1.44303938,3501.0,3500.2,3.40697]
[1721579077333,0.59132647,3500.9,3500.2,0.55]
[1721579077554,3.44774647,3500.9,3500.2,0.55]
[1721579077744,3.44774647,3500.9,3500.1,0.55]
[1721579078054,0.59132647,3500.9,3500.1,3.40705]
[1721579078421,0.59132647,3500.9,3500.2,2.85692]
[1721579079852,0.59132647,3500.9,3500.3,2.85688]
[1721579080020,0.59132647,3501.0,3500.3,2.85688]
[1721579080234,0.59132647,3501.0,3500.4,2.8568]
[1721579080430,0.59132647,3501.1,3500.4,2.8568]
[1721579080844,3.59132647,3501.2,3500.7,2.85656]
[1721579081029,0.59132647,3501.3,3500.8,2.85647]
[1721579081364,0.59132647,3501.3,3500.7,2.85656]
[1721579081561,0.59132647,3501.4,3500.7,2.85656]
[1721579081920,0.59132647,3501.3,3500.7,2.85656]
[1721579083357,0.59132647,3501.4,3500.7,2.85656]
[1721579084362,0.59132647,3501.3,3500.7,2.85656]
[1721579085558,0.59132647,3501.3,3500.9,2.85638]
[1721579085764,3.88698971,3501.5,3500.9,2.85638]
[1721579085765,0.59132647,3501.4,3500.9,2.85638]
[1721579085968,0.59132647,3501.5,3500.9,2.85638]
[1721579087078,0.05196009,3501.4,3500.9,2.85638]
[1721579087684,0.05196009,3501.4,3500.8,2.91359479]
[1721579087871,0.05196009,3501.4,3501.1,2.85622]
[1721579088383,0.05195982,3501.3,3501.1,2.85622]
[1721579088593,0.59132647,3501.6,3500.9,3.14775948]
[1721579088885,0.05195955,3501.2,3500.9,2.8564]
[1721579089093,0.59132647,3501.6,3500.9,2.8564]
[1721579089277,0.05195928,3501.1,3500.8,2.85648]
[1721579089453,0.59132647,3501.6,3501.0,2.85632]
[1721579090259,0.59132647,3501.7,3501.0,2.85632]
[1721579091407,0.59132647,3501.6,3501.0,2.85632]
[1721579093868,1.32471809,3501.6,3500.8,2.85648]
[1721579094197,0.59132647,3501.5,3500.8,2.85648]
[1721579094373,0.59132647,3501.5,3500.7,10.10656]
[1721579094576,0.59132647,3501.5,3500.8,0.55]
[1721579095359,0.59132647,3501.5,3500.9,2.8564]
[1721579095970,0.59132647,3501.6,3500.9,2.8564]
[1721579096285,0.59132647,3501.6,3501.0,2.85632]
[1721579096888,0.59132647,3501.7,3501.0,2.85632]
[1721579097085,0.59132647,3501.7,3501.2,2.85615]
[1721579099399,0.59132647,3501.8,3501.2,2.85615]
[1721579100017,0.59132647,3501.8,3501.1,2.4755]
[1721579100219,0.59132647,3501.8,3501.3,2.85606]
[1721579100425,4.63555103,3502.6,3501.3,2.85606]
[1721579100426,0.59132647,3502.2,3501.8,2.85567]
[1721579100724,0.59132647,3502.2,3501.6,2.4755]
[1721579101018,0.59132647,3502.1,3501.6,2.4755]
[1721579101228,3.74227971,3502.3,3501.6,2.4755]
[1721579101229,0.59132647,3502.0,3501.6,2.4755]
[1721579101597,0.59132647,3502.1,3501.6,2.4755]
[1721579101780,0.59132647,3502.1,3501.6,5.33132]
[1721579101980,0.05212684,3502.0,3501.6,5.33132]
[1721579102214,0.59132647,3502.2,3501.6,5.33132]
[1721579102524,3.88698971,3502.4,3501.6,5.33132]
[1721579102525,0.59132647,3502.4,3501.7,3.40574]
[1721579102682,0.59132647,3502.5,3502.0,2.85544]
[1721579102881,0.59132647,3502.7,3502.2,2.85532]
[1721579103108,0.59132647,3502.8,3502.2,2.85532]
[1721579103295,1.14288938,3502.8,3502.0,2.85547]
[1721579103496,0.59132647,3502.7,3502.0,2.85547]
[1721579104216,1.14288938,3502.8,3502.1,2.85542]
[1721579104583,0.59132647,3502.8,3502.1,2.85542]
[1721579104986,0.59132647,3502.9,3502.1,2.85542]
[1721579105617,0.59132647,3503.0,3502.1,2.85542]
[1721579105814,0.59132647,3502.9,3502.2,2.85534]
[1721579106013,0.59132647,3503.0,3502.2,5.33084]
[1721579106225,1.67981938,3503.0,3502.2,5.33084]
[1721579107341,1.67981938,3503.0,3501.8,7.25]
[1721579107542,1.67981938,3503.0,3501.9,0.55]
[1721579107757,2.85494,3502.7,3501.9,0.55]
[1721579108233,3.74306769,3502.9,3501.9,3.40557]
[1721579108438,1.8669168,3502.9,3501.9,3.40557]
[1721579108613,4.8669168,3502.9,3501.9,3.40557]
[1721579109436,4.8669168,3502.9,3501.9,0.55]
[1721579110139,2.85494,3502.7,3501.9,0.55]
[1721579111042,4.8669168,3502.9,3501.8,9.7255]
[1721579111342,2.85518,3502.4,3501.8,9.7255]
[1721579112748,3.44637647,3502.6,3501.8,9.7255]
[1721579112915,3.0,3502.5,3501.8,9.7255]
[1721579113317,3.0,3502.5,3501.8,12.58116]
[1721579113525,3.0,3502.6,3501.8,12.58116]
[1721579114212,3.0,3502.6,3501.8,9.7255]
[1721579114436,3.59132647,3502.8,3502.0,2.85549]
[1721579114619,3.0,3502.8,3502.0,2.85549]
[1721579114966,0.59132647,3503.0,3502.2,2.4755]
[1721579115127,0.59132647,3503.1,3502.4,2.85516]
[1721579115462,0.59132647,3503.2,3502.3,1.00666074]
[1721579116042,0.59132647,3503.2,3502.3,0.55]
[1721579116043,2.85475,3503.0,3502.3,0.55]
[1721579116204,2.85475,3503.0,3502.2,2.4755]
[1721579116404,2.9070831,3502.9,3502.2,2.4755]
[1721579116628,2.85485,3502.8,3502.2,2.4755]
[1721579116939,0.59132647,3502.6,3501.8,9.6936]
[1721579117309,0.59132647,3502.4,3501.8,9.6936]
[1721579117650,0.0523958,3502.3,3501.8,9.6936]
[1721579118011,5.85519,3502.4,3501.8,9.6936]
[1721579118217,0.05239553,3502.2,3501.8,9.6936]
[1721579118444,6.44651647,3502.4,3501.8,2.4436]
[1721579118804,0.05239526,3502.1,3501.8,2.4436]
[1721579118935,6.87403562,3502.4,3501.8,2.4436]
[1721579118936,3.0,3502.4,3501.8,2.4436]
[1721579119109,0.0523958,3502.3,3501.8,2.4436]
[1721579119711,3.0,3502.5,3501.8,2.4436]
[1721579119911,0.05239553,3502.2,3501.8,2.4436]
[1721579120115,3.0,3502.7,3502.0,2.8555]
[1721579120448,0.59132647,3502.8,3502.0,2.8555]
[1721579120449,0.05233088,3502.6,3502.0,2.8555]
[1721579120649,3.59132647,3502.8,3502.0,2.8555]
[1721579120952,0.05234204,3502.5,3501.8,2.4436]
[1721579121113,3.44642647,3502.5,3501.8,2.4436]
[1721579121452,2.85568,3501.8,3501.4,2.2719]
[1721579121751,2.85568,3501.8,3501.3,7.25]
[1721579121752,2.85578,3501.7,3501.3,7.25]
[1721579121911,0.05225633,3501.7,3501.3,7.25]
[1721579122115,3.0,3501.8,3501.3,7.25]
[1721579122314,0.05225688,3501.6,3501.3,7.25]
[1721579122647,2.85598,3501.5,3501.3,7.25]
[1721579122849,2.85617,3501.2,3501.0,19.73]
[1721579123154,2.856,3501.4,3500.6,7.25]
[1721579123155,2.85642,3500.9,3500.6,7.25]
[1721579123650,0.05212241,3500.8,3500.6,7.25]
[1721579124873,2.85624,3501.1,3500.6,7.25]
[1721579125032,0.05212214,3500.7,3500.6,7.25]
[1721579125232,6.44740647,3501.3,3500.6,7.25]
[1721579125453,0.05212214,3500.7,3500.6,7.25]
[1721579125650,2.85621,3501.2,3500.6,7.25]
[1721579125651,3.0,3501.1,3500.6,7.25]
[1721579125940,0.05200776,3500.7,3500.6,7.25]
[1721579126165,3.0,3501.1,3500.6,7.25]
[1721579126361,3.0,3501.1,3500.3,22.0019]
[1721579126681,2.85642,3500.9,3500.3,22.0019]
[1721579127051,0.05200803,3500.8,3500.3,22.0019]
[1721579128539,2.85629,3501.1,3500.3,22.0019]
[1721579129040,0.0518175,3501.0,3500.3,22.0019]
[1721579132096,0.09055174,3501.0,3500.3,22.0019]
[1721579132279,0.09055174,3501.0,3500.3,2.2719]
[1721579133657,1.02997656,3501.0,3500.3,2.2719]
[1721579133887,1.02997656,3501.0,3500.2,7.25]
[1721579133888,3.44774647,3500.9,3500.2,7.25]
[1721579134088,2.85665,3500.6,3499.9,9.5219]
[1721579134408,2.85652,3500.8,3499.9,12.37911]
[1721579134580,0.09048363,3500.5,3499.9,12.37911]
[1721579134908,2.85652,3500.8,3499.9,12.37911]
[1721579135201,0.09045359,3500.4,3499.9,12.37911]
[1721579135418,2.85652,3500.8,3499.9,9.5219]
[1721579135777,0.09045359,3500.3,3499.9,12.37911]
[1721579136110,3.0,3500.9,3500.0,2.2659]
[1721579136278,3.0,3500.9,3500.1,2.85704]
[1721579136481,0.09041211,3500.8,3500.1,2.85704]
[1721579137009,0.09041211,3500.8,3500.0,2.2659]
[1721579137217,0.09041211,3500.8,3500.0,5.12302]
[1721579137510,5.85641,3500.9,3500.0,5.12302]
[1721579137511,0.09040496,3500.7,3500.0,5.12302]
[1721579137869,5.85641,3500.9,3500.0,5.12302]
[1721579138065,0.09040783,3500.6,3500.0,5.12302]
[1721579138369,5.85641,3500.9,3500.0,5.12302]
[1721579138802,0.09041784,3500.8,3500.0,5.12302]
[1721579139311,5.85641,3500.9,3500.0,5.12302]
[1721579139712,0.09041784,3500.8,3500.0,5.12302]
[1721579140118,5.85641,3500.9,3500.0,5.12302]
[1721579140314,2.85649,3500.8,3500.0,2.2659]
[1721579140608,2.94690355,3500.8,3500.0,5.12303]
[1721579140808,0.09041355,3500.8,3500.0,5.12303]
[1721579140980,0.09041355,3500.8,3500.0,2.2659]
[1721579141189,0.09041355,3500.8,3500.3,2.85689]
[1721579141397,0.09041355,3500.8,3500.1,2.85701]
[1721579141603,5.85631,3501.1,3500.1,2.85701]
[1721579141792,5.85631,3501.1,3500.2,2.85692]
[1721579141994,0.09042213,3501.0,3500.2,2.85692]
[1721579142218,2.94674213,3501.0,3500.0,5.12304]
[1721579142425,3.0,3500.9,3500.0,5.12304]
[1721579142606,3.0,3500.9,3500.1,2.85705]
[1721579142791,0.09042643,3500.8,3500.1,2.85705]
[1721579143006,5.85642,3500.9,3500.1,2.85705]
[1721579143236,3.0,3500.9,3500.0,2.2659]
[1721579143445,2.94693643,3500.8,3500.0,2.2659]
[1721579143623,3.59253374,3500.8,3500.0,2.2659]
[1721579144842,0.09042643,3500.8,3500.0,5.12298]
[1721579145140,3.0,3500.9,3500.1,2.85704]
[1721579145326,0.09039924,3500.7,3500.1,2.85704]
[1721579145642,3.0,3500.9,3500.1,2.85704]
[1721579146036,0.09038351,3500.8,3500.1,2.85704]
[1721579146841,0.09038351,3500.8,3500.0,2.2659]
[1721579147053,0.09038351,3500.8,3500.7,5.19037]
[1721579147356,2.85564,3501.9,3501.0,2.8563]
[1721579147635,0.71895362,3501.8,3501.0,2.8563]
[1721579147853,2.94310735,3501.8,3500.9,2.8564]
[1721579148012,0.08739735,3501.8,3501.0,2.85632]
[1721579148204,2.85566,3501.9,3500.8,2.85648]
[1721579148405,5.85573,3501.8,3500.8,2.85648]
[1721579148632,2.85575,3501.7,3500.8,2.85648]
[1721579148811,3.0,3501.6,3500.8,2.85648]
[1721579149045,3.08745777,3501.6,3500.8,2.85648]
[1721579149475,3.08745777,3501.6,3500.9,2.8564]
[1721579149835,3.08745777,3501.6,3501.0,2.85632]
[1721579150037,3.0,3501.5,3501.0,2.85632]
[1721579150237,3.0,3501.8,3501.0,2.85632]
[1721579150238,0.08750381,3501.4,3501.0,2.85632]
[1721579150541,5.85568,3501.8,3500.8,2.85645]
[1721579150886,2.85576,3501.7,3500.8,2.85645]